bitfinex-derivatives/quotes_SOLF0:USTF0_20260308
["timestamp","ask_amount","ask_price","bid_price","bid_amount"]
[1772952301494,9.6721428,82.448,82.413,7.13320127]
[1772952301695,9.6721428,82.447,82.413,7.13320127]
[1772952301895,9.6721428,82.446,82.413,7.13320127]
[1772952302103,1.51893136,82.451,82.413,7.13320127]
[1772952302295,9.66897797,82.45,82.413,7.13320127]
[1772952302499,9.66897797,82.449,82.413,7.13320127]
[1772952302700,9.66897797,82.448,82.413,7.13320127]
[1772952302901,9.66897797,82.447,82.413,7.13320127]
[1772952303101,9.66897797,82.446,82.413,7.13320127]
[1772952303398,9.66897797,82.445,82.413,7.13320127]
[1772952303592,1.51893136,82.451,82.413,7.13320127]
[1772952303790,1.67156699,82.449,82.413,7.13320127]
[1772952304098,1.69781751,82.447,82.413,7.13320127]
[1772952304297,1.69781751,82.445,82.413,7.13320127]
[1772952304497,1.69781751,82.454,82.413,7.13320127]
[1772952304702,1.69643323,82.452,82.413,7.13320127]
[1772952304900,9.67470853,82.451,82.413,7.13320127]
[1772952305201,9.67470853,82.45,82.413,7.13320127]
[1772952305396,1.69643323,82.452,82.413,7.13320127]
[1772952305397,9.67470853,82.449,82.413,7.13320127]
[1772952305599,9.67470853,82.448,82.413,7.13320127]
[1772952305800,9.67470853,82.447,82.413,7.13320127]
[1772952305999,1.69643323,82.452,82.413,7.13320127]
[1772952306201,9.67529682,82.451,82.413,7.13320127]
[1772952306395,9.67529682,82.45,82.413,7.13320127]
[1772952306594,9.67529682,82.449,82.413,7.13320127]
[1772952306793,9.67529682,82.448,82.413,7.13320127]
[1772952306992,1.69643323,82.452,82.413,7.13320127]
[1772952307201,9.67543354,82.451,82.413,7.13320127]
[1772952307400,9.67543354,82.45,82.415,7.4600928]
[1772952307698,1.51874022,82.468,82.415,7.4600928]
[1772952308003,1.48395925,82.466,82.415,7.4600928]
[1772952308203,1.5090441,82.464,82.415,7.4600928]
[1772952308397,9.67573353,82.463,82.415,7.4600928]
[1772952308603,9.67573353,82.462,82.415,7.4600928]
[1772952308800,1.50727791,82.459,82.418,7.4600928]
[1772952309004,1.50727791,82.449,82.405,7.4600928]
[1772952309199,1.53206739,82.447,82.405,7.4600928]
[1772952309405,1.53206739,82.445,82.405,7.4600928]
[1772952309606,11.20780092,82.444,82.405,7.4600928]
[1772952309811,9.67573353,82.443,82.405,7.4600928]
[1772952310111,9.67573353,82.442,82.405,7.4600928]
[1772952310313,1.53206739,82.444,82.405,7.4600928]
[1772952310612,9.67152018,82.443,82.405,7.4600928]
[1772952310811,9.67152018,82.442,82.405,7.4600928]
[1772952311011,9.67152018,82.441,82.405,7.4600928]
[1772952311213,1.53206739,82.444,82.405,7.4600928]
[1772952311413,9.67174521,82.443,82.405,7.4600928]
[1772952311612,9.67174521,82.442,82.405,7.4600928]
[1772952311811,1.53206739,82.444,82.405,7.4600928]
[1772952312011,9.67174521,82.443,82.405,7.4600928]
[1772952312211,9.67174521,82.442,82.405,7.4600928]
[1772952312412,1.53206739,82.444,82.405,7.4600928]
[1772952312612,9.67109019,82.443,82.405,7.4600928]
[1772952312812,9.67109019,82.442,82.405,7.4600928]
[1772952313013,1.53206739,82.444,82.405,7.4600928]
[1772952313214,1.61144355,82.453,82.405,7.4600928]
[1772952313515,1.61144355,82.451,82.405,7.4600928]
[1772952313708,12.51792439,82.457,82.405,7.4600928]
[1772952313912,1.60292439,82.455,82.405,7.4600928]
[1772952314109,1.60292439,82.453,82.405,7.4600928]
[1772952314314,1.62632453,82.451,82.405,7.4600928]
[1772952314511,1.62632453,82.449,82.405,7.4600928]
[1772952314710,1.6246526,82.447,82.405,7.4600928]
[1772952314910,1.6246526,82.445,82.405,7.4600928]
[1772952315111,1.6246526,82.443,82.405,7.4600928]
[1772952315311,9.67156628,82.442,82.405,7.4600928]
[1772952315512,1.6246526,82.443,82.405,7.4600928]
[1772952315706,9.67128451,82.442,82.405,7.4600928]
[1772952315909,1.6246526,82.443,82.405,7.4600928]
[1772952316105,9.67233111,82.442,82.405,7.4600928]
[1772952316311,1.6246526,82.443,82.405,7.4600928]
[1772952316512,9.67199298,82.442,82.405,7.4600928]
[1772952316712,1.6246526,82.443,82.405,7.4600928]
[1772952316913,9.67198967,82.442,82.405,7.4600928]
[1772952317210,1.6246526,82.443,82.405,7.4600928]
[1772952317416,9.67169302,82.442,82.405,7.4600928]
[1772952317718,1.6246526,82.443,82.405,7.4600928]
[1772952317913,9.67170882,82.442,82.405,7.4600928]
[1772952318114,1.6246526,82.443,82.405,7.4600928]
[1772952318316,9.67143507,82.442,82.405,7.4600928]
[1772952318618,1.6246526,82.443,82.405,7.4600928]
[1772952318818,1.6246526,82.443,82.407,7.4600928]
[1772952322215,5.5777809,82.44,82.407,7.4600928]
[1772952322522,1.65309912,82.44,82.407,7.4600928]
[1772952330724,1.65309912,82.44,82.392,949.38683944]
[1772952330725,1.83455129,82.439,82.392,949.38683944]
[1772952330925,1.83455129,82.429,82.392,949.38683944]
[1772952331925,1.83455129,82.429,82.387,7.4600928]
[1772952332628,1.8555588,82.419,82.385,292.27031952]
[1772952333226,1.8555588,82.419,82.378,8.25571177]
[1772952348835,1.8555588,82.419,82.381,8.25571177]
[1772952351232,1.91864769,82.429,82.381,8.25571177]
[1772952353332,1.91864769,82.429,82.383,8.25571177]
[1772952359538,1.98849959,82.427,82.383,8.25571177]
[1772952366151,10.919,82.428,82.383,8.25571177]
[1772952366357,2.07398431,82.441,82.395,7.82417511]
[1772952366654,203.72223311,82.443,82.395,7.82417511]
[1772952366655,2.07398431,82.439,82.395,7.82417511]
[1772952366857,2.07278416,82.437,82.395,7.82417511]
[1772952368158,1.96639786,82.435,82.395,7.82417511]
[1772952371159,3.92468178,82.44,82.395,7.82417511]
[1772952371457,9.56037033,82.439,82.395,7.82417511]
[1772952371657,9.56037033,82.438,82.395,7.82417511]
[1772952371857,9.56037033,82.437,82.395,7.82417511]
[1772952372058,9.56037033,82.436,82.395,7.82417511]
[1772952372258,9.56037033,82.435,82.395,7.82417511]
[1772952372458,9.56037033,82.434,82.395,7.82417511]
[1772952372758,3.92468178,82.44,82.395,7.82417511]
[1772952372959,9.56248944,82.439,82.395,7.82417511]
[1772952373150,9.56248944,82.438,82.395,7.82417511]
[1772952373352,9.56248944,82.437,82.395,7.82417511]
[1772952373549,9.56248944,82.436,82.395,7.82417511]
[1772952373749,9.56248944,82.435,82.395,7.82417511]
[1772952373956,9.56248944,82.434,82.395,7.82417511]
[1772952374157,9.56248944,82.433,82.395,7.82417511]
[1772952374358,9.56248944,82.432,82.395,7.82417511]
[1772952374657,3.92468178,82.44,82.395,7.82417511]
[1772952374960,9.5678292,82.439,82.395,7.82417511]
[1772952375256,9.5678292,82.438,82.395,7.82417511]
[1772952375562,9.5678292,82.437,82.395,7.82417511]
[1772952375754,9.5678292,82.436,82.395,7.82417511]
[1772952375955,9.5678292,82.435,82.395,7.82417511]
[1772952376154,9.5678292,82.434,82.395,7.82417511]
[1772952376358,9.5678292,82.433,82.395,7.82417511]
[1772952376560,9.5678292,82.432,82.395,7.82417511]
[1772952376857,9.5678292,82.431,82.395,7.82417511]
[1772952377057,9.5678292,82.43,82.395,7.82417511]
[1772952377267,3.92468178,82.44,82.395,7.82417511]
[1772952377461,9.57180112,82.439,82.395,7.82417511]
[1772952377758,9.57180112,82.438,82.395,7.82417511]
[1772952377955,9.57180112,82.437,82.395,7.82417511]
[1772952378156,9.57180112,82.436,82.395,7.82417511]
[1772952378363,9.57180112,82.435,82.395,7.82417511]
[1772952378558,9.57180112,82.434,82.395,7.82417511]
[1772952378759,9.57180112,82.433,82.395,7.82417511]
[1772952378962,9.57180112,82.432,82.395,7.82417511]
[1772952379260,9.57180112,82.431,82.395,7.82417511]
[1772952379454,9.57180112,82.43,82.395,7.82417511]
[1772952379652,3.92530152,82.44,82.395,7.82417511]
[1772952379862,9.56541691,82.439,82.395,7.82417511]
[1772952380057,9.56541691,82.438,82.395,7.82417511]
[1772952380251,9.56541691,82.437,82.395,7.82417511]
[1772952380454,9.56541691,82.436,82.395,7.82417511]
[1772952380661,9.56541691,82.435,82.395,7.82417511]
[1772952380961,9.56541691,82.434,82.395,7.82417511]
[1772952381261,9.56541691,82.433,82.395,7.82417511]
[1772952381463,9.56541691,82.432,82.395,7.82417511]
[1772952381761,9.56541691,82.431,82.395,7.82417511]
[1772952381957,3.92530152,82.44,82.395,7.82417511]
[1772952382154,9.56476976,82.439,82.395,7.82417511]
[1772952382357,9.56476976,82.438,82.395,7.82417511]
[1772952382555,9.56476976,82.437,82.395,7.82417511]
[1772952382753,9.56476976,82.436,82.395,7.82417511]
[1772952382963,9.56476976,82.435,82.395,7.82417511]
[1772952383263,9.56476976,82.434,82.395,7.82417511]
[1772952383460,9.56476976,82.433,82.395,7.82417511]
[1772952383664,9.56476976,82.432,82.395,7.82417511]
[1772952383864,9.56476976,82.431,82.395,7.82417511]
[1772952384066,6.12348318,82.44,82.395,7.82417511]
[1772952384259,9.56424848,82.439,82.395,7.82417511]
[1772952384566,9.56424848,82.438,82.395,7.82417511]
[1772952384767,9.56424848,82.437,82.395,7.82417511]
[1772952384964,9.56424848,82.436,82.395,7.82417511]
[1772952385165,9.56424848,82.435,82.395,7.82417511]
[1772952385466,9.56424848,82.434,82.395,7.82417511]
[1772952385665,6.12348318,82.44,82.395,7.82417511]
[1772952385666,9.56424848,82.433,82.395,7.82417511]
[1772952385868,9.56424848,82.432,82.395,7.82417511]
[1772952386068,9.56424848,82.431,82.395,7.82417511]
[1772952386271,2.22043307,82.439,82.395,7.82417511]
[1772952386566,9.56392404,82.438,82.395,7.82417511]
[1772952386766,9.56392404,82.437,82.395,7.82417511]
[1772952387066,9.56392404,82.436,82.395,7.82417511]
[1772952387266,9.56392404,82.435,82.395,7.82417511]
[1772952387467,9.56392404,82.434,82.395,7.82417511]
[1772952387670,9.56392404,82.433,82.395,7.82417511]
[1772952387865,9.56392404,82.432,82.395,7.82417511]
[1772952388065,9.56392404,82.431,82.395,7.82417511]
[1772952388266,2.22043307,82.439,82.395,7.82417511]
[1772952388463,11.80689036,82.438,82.395,7.82417511]
[1772952388665,9.5638633,82.437,82.395,7.82417511]
[1772952388864,9.5638633,82.436,82.395,7.82417511]
[1772952389066,9.5638633,82.435,82.395,7.82417511]
[1772952389270,9.5638633,82.434,82.395,7.82417511]
[1772952389466,9.5638633,82.433,82.395,7.82417511]
[1772952389663,2.21600209,82.431,82.395,7.82417511]
[1772952389974,6.14130361,82.42,82.383,7.82417511]
[1772952397989,2.27669433,82.419,82.383,7.82417511]
[1772952420204,3.92530152,82.42,82.384,8.52950542]
[1772952420397,3.92530152,82.43,82.384,8.52950542]
[1772952420600,9.5732634,82.429,82.384,8.52950542]
[1772952420802,9.5732634,82.428,82.384,8.52950542]
[1772952420998,12.04474892,82.427,82.384,8.52950542]
[1772952421204,9.5732634,82.426,82.384,8.52950542]
[1772952421508,9.5732634,82.425,82.384,8.52950542]
[1772952421706,9.5732634,82.424,82.384,8.52950542]
[1772952421908,9.5732634,82.423,82.386,8.52950542]
[1772952422107,2.47148552,82.427,82.386,8.52950542]
[1772952422303,9.5695586,82.426,82.386,8.52950542]
[1772952422509,2.47148552,82.427,82.386,8.52950542]
[1772952422510,9.5695586,82.425,82.386,8.52950542]
[1772952422712,2.52534082,82.419,82.377,8.36051884]
[1772952423011,2.52534082,82.399,82.354,8.36051884]
[1772952424011,2.52534082,82.399,82.36,8.36051884]
[1772952424212,2.46546819,82.408,82.36,8.36051884]
[1772952424411,9.55999617,82.407,82.36,8.36051884]
[1772952424612,2.46546819,82.408,82.36,8.36051884]
[1772952424805,9.55999617,82.407,82.36,8.36051884]
[1772952425007,2.46546819,82.408,82.36,8.36051884]
[1772952425810,2.46546819,82.408,82.365,8.36051884]
[1772952430510,2.46546819,82.408,82.367,8.36051884]
[1772952433513,2.46546819,82.408,82.369,8.36051884]
[1772952446131,2.4383824,82.418,82.369,8.36051884]
[1772952446428,2.4383824,82.416,82.369,8.36051884]
[1772952446725,2.4383824,82.414,82.369,8.36051884]
[1772952446926,2.43785388,82.412,82.369,8.36051884]
[1772952447724,6.37109096,82.41,82.369,8.36051884]
[1772952448428,2.44793265,82.409,82.369,8.36051884]
[1772952449828,2.45075326,82.399,82.369,8.36051884]
[1772952450021,2.45075326,82.399,82.36,19.28851884]
[1772952450720,2.45075326,82.399,82.361,8.36051884]
[1772952481450,2.29803993,82.397,82.361,8.36051884]
[1772952481751,2.29803993,82.389,82.361,2.2920809]
[1772952481946,8.36559228,82.387,82.339,279.43455719]
[1772952482653,8.36559228,82.387,82.342,10.93]
[1772952483753,8.36559228,82.387,82.343,8.37565911]
[1772952484351,8.36559228,82.387,82.339,279.43455719]
[1772952484352,8.36452723,82.389,82.344,8.37565911]
[1772952485761,8.36452723,82.389,82.345,10.93]
[1772952485954,8.36452723,82.389,82.346,8.37565911]
[1772952491659,8.42819952,82.379,82.339,279.43455719]
[1772952493057,12.3560598,82.37,82.339,287.8102163]
[1772952493264,8.42819952,82.37,82.34,8.37565911]
[1772952496565,3.92786028,82.38,82.34,8.37565911]
[1772952496763,8.42819952,82.379,82.34,8.37565911]
[1772952506774,8.42819952,82.359,82.317,8.37565911]
[1772952512471,8.65340282,82.357,82.317,8.37565911]
[1772952513077,10.928,82.356,82.317,8.37565911]
[1772952513278,8.65807156,82.355,82.317,8.37565911]
[1772952514385,10.929,82.354,82.317,8.37565911]
[1772952514583,19.60698175,82.354,82.317,8.37565911]
[1772952515878,3.93084735,82.34,82.292,8.67492264]
[1772952516080,8.67678754,82.339,82.292,8.67492264]
[1772952518777,10.931,82.338,82.292,8.67492264]
[1772952520189,8.67678754,82.339,82.292,8.67492264]
[1772952524093,8.78141185,82.329,82.292,8.67492264]
[1772952524297,8.78141185,82.329,82.283,8.67492264]
[1772952532702,8.78141185,82.328,82.283,8.67492264]
[1772952533501,8.78141185,82.326,82.283,8.67492264]
[1772952534901,10.932,82.324,82.283,8.67492264]
[1772952535304,19.71341185,82.324,82.283,8.67492264]
[1772952535803,3.93084735,82.33,82.283,8.67492264]
[1772952535804,10.933,82.322,82.283,8.67492264]
[1772952540708,19.71441185,82.322,82.283,8.67492264]
[1772952541111,8.78141185,82.303,82.266,8.67492264]
[1772952542010,8.78141185,82.301,82.266,8.67492264]
[1772952542310,8.9846796,82.299,82.258,425.45887735]
[1772952542912,9.12755153,82.297,82.258,425.45887735]
[1772952543105,9.12755153,82.297,82.258,434.43987013]
[1772952544507,10.936,82.295,82.258,434.43987013]
[1772952544809,9.12755153,82.294,82.249,8.98099278]
[1772952545011,3.93084735,82.29,82.249,8.98099278]
[1772952545211,9.12755153,82.289,82.249,8.98099278]
[1772952546403,9.12755153,82.289,82.25,3.93084735]
[1772952546604,9.12755153,82.299,82.251,8.98099278]
[1772952547015,9.48742953,82.323,82.223,451.18257948]
[1772952547016,9.12755153,82.309,82.261,8.98099278]
[1772952547610,10.934,82.313,82.271,8.98099278]
[1772952548613,9.12755153,82.319,82.281,8.98099278]
[1772952550612,10.933,82.322,82.281,8.98099278]
[1772952551316,9.12755153,82.329,82.281,8.98099278]
[1772952555814,3.93084735,82.34,82.281,8.98099278]
[1772952556026,9.12755153,82.339,82.281,8.98099278]
[1772952557827,9.12755153,82.339,82.291,8.98099278]
[1772952559225,9.12755153,82.338,82.291,8.98099278]
[1772952560519,9.12755153,82.329,82.283,8.98099278]
[1772952561725,3.93084735,82.32,82.283,8.98099278]
[1772952561928,9.12755153,82.319,82.283,8.98099278]
[1772952567934,9.12755153,82.309,82.261,8.98099278]
[1772952569927,9.12755153,82.307,82.261,8.98099278]
[1772952570733,9.12755153,82.299,82.261,8.98099278]
[1772952575829,8.96094745,82.289,82.261,8.98099278]
[1772952577334,8.96094745,82.289,82.24,3.93625922]
[1772952577541,8.96094745,82.289,82.241,8.77631895]
[1772952580933,8.96094745,82.287,82.241,8.77631895]
[1772952585850,8.96094745,82.278,82.241,8.77631895]
[1772952586246,8.96094745,82.262,82.227,8.77631895]
[1772952586446,10.941,82.261,82.227,8.77631895]
[1772952586647,8.96094745,82.26,82.227,8.77631895]
[1772952587853,10.941,82.258,82.227,8.77631895]
[1772952588043,3.93625922,82.27,82.205,287.53129758]
[1772952588044,8.96094745,82.283,82.231,8.77631895]
[1772952588245,8.96094745,82.283,82.241,8.77631895]
[1772952589753,19.89894745,82.283,82.241,8.77631895]
[1772952598458,8.96094745,82.282,82.241,8.77631895]
[1772952600453,11.26992042,82.317,82.241,8.77631895]
[1772952600454,8.96094745,82.293,82.241,8.77631895]
[1772952600656,10.937,82.292,82.251,8.77631895]
[1772952608868,8.95326151,82.301,82.251,8.77631895]
[1772952612275,8.95326151,82.299,82.251,8.77631895]
[1772952615183,9.56757445,82.298,82.251,8.77631895]
[1772952615374,8.95326151,82.299,82.251,8.77631895]
[1772952615575,18.52089239,82.298,82.251,8.77631895]
[1772952615775,8.95326151,82.298,82.254,9.27668847]
[1772952623482,8.95326151,82.307,82.261,9.27668847]
[1772952623671,18.51952607,82.306,82.261,9.27668847]
[1772952623875,8.95326151,82.306,82.261,9.27668847]
[1772952626078,8.95326151,82.299,82.251,9.27668847]
[1772952629090,8.95326151,82.299,82.261,9.27668847]
[1772952635089,9.29310499,82.279,82.237,8.68362404]
[1772952639491,9.29310499,82.279,82.239,8.68362404]
[1772952640392,13.23014815,82.29,82.243,8.68362404]
[1772952640693,9.29310499,82.29,82.243,8.68362404]
[1772952641691,13.23014815,82.29,82.243,8.68362404]
[1772952641890,13.23014815,82.29,82.25,8.68362404]
[1772952642091,9.29310499,82.289,82.25,8.68362404]
[1772952643798,9.29310499,82.289,82.252,8.68362404]
[1772952646396,9.29310499,82.289,82.255,8.68362404]
[1772952647200,9.29310499,82.299,82.255,8.68362404]
[1772952656009,9.29310499,82.299,82.261,8.68362404]
[1772952656802,9.29310499,82.299,82.265,8.68362404]
[1772952662911,9.55173709,82.322,82.277,8.80408474]
[1772952663110,8.70917809,82.326,82.277,8.80408474]
[1772952663303,8.70917809,82.319,82.277,8.80408474]
[1772952663804,8.70917809,82.299,82.26,8.80408474]
[1772952664006,8.70917809,82.289,82.231,8.80408474]
[1772952665013,8.70917809,82.289,82.239,8.80408474]
[1772952665809,8.70917809,82.289,82.241,8.80408474]
[1772952667316,8.70917809,82.289,82.245,8.80408474]
[1772952668817,8.70917809,82.289,82.251,8.80408474]
[1772952669823,8.70917809,82.302,82.26,3.93704316]
[1772952670021,8.70917809,82.302,82.261,8.80408474]
[1772952676622,8.70917809,82.299,82.25,8.80408474]
[1772952680525,8.70917809,82.299,82.25,12.7411279]
[1772952680728,8.70917809,82.299,82.251,8.80408474]
[1772952681330,8.70917809,82.299,82.253,8.80408474]
[1772952681822,8.70917809,82.299,82.261,8.80408474]
[1772952694032,9.12413908,82.312,82.261,8.80408474]
[1772952694338,9.12413908,82.31,82.261,8.80408474]
[1772952694537,9.12413908,82.308,82.263,8.48715841]
[1772952694736,9.12413908,82.306,82.263,8.48715841]
[1772952695037,18.67806589,82.305,82.263,8.48715841]
[1772952695236,9.12413908,82.305,82.263,8.48715841]
[1772952701743,9.12413908,82.305,82.265,8.48715841]
[1772952708251,9.57118824,82.304,82.265,8.48715841]
[1772952708446,9.12413908,82.305,82.265,8.48715841]
[1772952708646,9.57118824,82.304,82.265,8.48715841]
[1772952708846,9.12413908,82.305,82.265,8.48715841]
[1772952709047,9.58195669,82.304,82.265,8.48715841]
[1772952709247,9.12413908,82.305,82.265,8.48715841]
[1772952709547,9.58213441,82.304,82.265,8.48715841]
[1772952709850,9.12413908,82.305,82.265,8.48715841]
[1772952710050,9.58213441,82.304,82.265,8.48715841]
[1772952710247,9.12413908,82.305,82.265,8.48715841]
[1772952710446,9.583439,82.304,82.265,8.48715841]
[1772952710647,9.12413908,82.305,82.265,8.48715841]
[1772952710847,9.58344093,82.304,82.265,8.48715841]
[1772952711047,9.58344093,82.304,82.264,10.94]
[1772952711048,9.12413908,82.305,82.267,8.48715841]
[1772952712144,9.12413908,82.305,82.269,10.94]
[1772952712345,9.12413908,82.319,82.271,8.48715841]
[1772952712549,9.58391311,82.318,82.271,8.48715841]
[1772952712749,9.12413908,82.316,82.271,8.48715841]
[1772952712954,9.58391311,82.315,82.271,8.48715841]
[1772952713252,9.12413908,82.316,82.271,8.48715841]
[1772952713444,9.12413908,82.314,82.271,8.48715841]
[1772952713850,9.12413908,82.314,82.274,8.48715841]
[1772952715053,9.12413908,82.314,82.276,8.48715841]
[1772952715254,9.12413908,82.314,82.281,8.48715841]
[1772952724757,8.6898993,82.309,82.261,8.55340486]
[1772952725759,8.6898993,82.309,82.263,10.941]
[1772952726061,8.6898993,82.309,82.264,8.55340486]
[1772952727257,8.6898993,82.309,82.267,10.94]
[1772952727557,8.6898993,82.309,82.268,8.55340486]
[1772952728556,8.6898993,82.324,82.274,8.55340486]
[1772952728757,8.6898993,82.322,82.274,8.55340486]
[1772952729363,8.6898993,82.322,82.276,8.55340486]
[1772952730558,8.6898993,82.322,82.279,8.55340486]
[1772952731763,8.6898993,82.322,82.284,8.55340486]
[1772952733865,8.6898993,82.322,82.286,8.55340486]
[1772952740465,8.6898993,82.333,82.289,8.55340486]
[1772952740669,8.6898993,82.333,82.291,8.55340486]
[1772952741671,8.6898993,82.333,82.301,8.55340486]
[1772952742270,8.6898993,82.349,82.301,8.55340486]
[1772952743369,8.6898993,82.349,82.302,8.55340486]
[1772952747881,8.6898993,82.349,82.304,8.55340486]
[1772952748683,8.6898993,82.349,82.307,8.55340486]
[1772952749785,8.6898993,82.349,82.309,8.55340486]
[1772952750478,8.6898993,82.349,82.311,8.55340486]
[1772952756282,8.6898993,82.349,82.302,9.36658745]
[1772952756486,8.68368527,82.339,82.291,9.36658745]
[1772952757887,8.68368527,82.339,82.292,9.36658745]
[1772952759892,8.68368527,82.339,82.296,9.36658745]
[1772952773695,3.93342118,82.33,82.287,9.36658745]
[1772952773901,8.68368527,82.329,82.287,9.36658745]
[1772952779815,8.68368527,82.329,82.289,9.36658745]
[1772952790722,15.0448442,82.371,82.247,367.2286883]
[1772952790723,9.18200834,82.319,82.261,8.45540852]
[1772952790921,9.18200834,82.309,82.261,8.45540852]
[1772952794527,9.18200834,82.299,82.261,8.45540852]
[1772952804739,9.18200834,82.319,82.264,8.45540852]
[1772952805740,9.18200834,82.319,82.267,8.45540852]
[1772952805936,9.18200834,82.319,82.271,8.45540852]
[1772952806738,9.18200834,82.319,82.272,10.939]
[1772952807038,9.18200834,82.319,82.273,8.45540852]
[1772952819453,9.18200834,82.319,82.28,3.9364156]
[1772952819645,14.8664156,82.34,82.258,226.27399787]
[1772952819646,9.21520588,82.338,82.291,8.94156361]
[1772952819841,9.21520588,82.336,82.291,8.94156361]
[1772952827563,9.55626368,82.335,82.291,8.94156361]
[1772952827863,9.21520588,82.334,82.291,8.94156361]
[1772952831258,9.56111479,82.333,82.291,8.94156361]
[1772952831559,9.21520588,82.332,82.291,8.94156361]
[1772952834268,9.21520588,82.33,82.291,8.94156361]
[1772952837467,9.21520588,82.328,82.291,8.94156361]
[1772952851278,9.57895189,82.327,82.291,8.94156361]
[1772952851478,9.21520588,82.328,82.291,8.94156361]
[1772952851780,9.57924917,82.327,82.291,8.94156361]
[1772952851973,9.21520588,82.328,82.291,8.94156361]
[1772952852280,9.57924917,82.327,82.291,8.94156361]
[1772952852477,9.21520588,82.328,82.291,8.94156361]
[1772952852677,9.57971464,82.327,82.291,8.94156361]
[1772952852875,8.91184621,82.339,82.301,9.2782012]
[1772952856083,8.91184621,82.339,82.305,9.2782012]
[1772952866793,9.57661339,82.338,82.291,9.2782012]
[1772952866996,3.9364156,82.33,82.274,9.2782012]
[1772952867201,8.91184621,82.329,82.281,9.2782012]
[1772952867898,8.91184621,82.329,82.286,9.2782012]
[1772952868793,8.91184621,82.329,82.289,9.2782012]
[1772952874504,8.91184621,82.329,82.28,8.56947757]
[1772952874802,8.88906387,82.327,82.28,8.56947757]
[1772952877507,8.88906387,82.327,82.281,8.56947757]
[1772952879705,8.88906387,82.327,82.283,8.56947757]
[1772952888607,8.88906387,82.327,82.287,10.937]
[1772952888809,8.88906387,82.327,82.288,8.56947757]
[1772952889314,8.88906387,82.347,82.298,8.56947757]
[1772952889515,8.88906387,82.345,82.298,8.56947757]
[1772952889716,8.88906387,82.343,82.298,8.56947757]
[1772952889916,8.88906387,82.341,82.298,8.56947757]
[1772952890119,8.88906387,82.339,82.298,8.56947757]
[1772952892018,390.01251866,82.353,82.301,8.56947757]
[1772952892019,8.88906387,82.352,82.301,8.56947757]
[1772952892323,8.88906387,82.35,82.301,8.56947757]
[1772952892518,9.57706945,82.349,82.301,8.56947757]
[1772952892718,9.57706945,82.348,82.304,8.56947757]
[1772952893022,8.88906387,82.35,82.304,8.56947757]
[1772952893217,9.57719625,82.349,82.304,8.56947757]
[1772952893414,9.57719625,82.348,82.304,8.56947757]
[1772952893612,8.88906387,82.35,82.304,8.56947757]
[1772952893810,9.57646203,82.349,82.304,8.56947757]
[1772952894010,390.01251866,82.353,82.321,8.56947757]
[1772952895018,8.88906387,82.359,82.321,8.56947757]
[1772952900722,8.88906387,82.369,82.323,8.56947757]
[1772952901527,8.88906387,82.369,82.326,8.56947757]
[1772952902933,8.88906387,82.369,82.328,8.47549936]
[1772952904132,8.88906387,82.369,82.331,8.47549936]
[1772952904432,8.71196181,82.378,82.331,8.47549936]
[1772952905928,8.71196181,82.378,82.333,8.47549936]
[1772952906828,8.71196181,82.378,82.341,8.47549936]
[1772952907831,8.71196181,82.378,82.342,8.47549936]
[1772952908836,8.71196181,82.387,82.342,8.47549936]
[1772952909031,8.71196181,82.387,82.344,8.47549936]
[1772952910133,8.71196181,82.387,82.346,8.47549936]
[1772952911436,202.81731403,82.395,82.348,8.47549936]
[1772952911835,8.71196181,82.394,82.348,8.47549936]
[1772952912238,8.71196181,82.394,82.352,8.47549936]
[1772952913733,8.71196181,82.394,82.354,10.928]
[1772952913939,8.71196181,82.394,82.355,8.47549936]
[1772952915840,8.71196181,82.394,82.357,8.47549936]
[1772952918242,8.71196181,82.379,82.338,291.95145956]
[1772952918641,8.71196181,82.379,82.339,8.47549936]
[1772952925749,8.71196181,82.379,82.344,8.47549936]
[1772952926744,8.71196181,82.379,82.346,8.47549936]
[1772952934155,8.71196181,82.379,82.347,10.929]
[1772952934448,8.71196181,82.379,82.348,9.13914956]
[1772952938254,8.71196181,82.379,82.349,10.929]
[1772952938460,8.71196181,82.379,82.35,9.13914956]
[1772952947855,8.82054656,82.397,82.352,9.13914956]
[1772952948260,8.82054656,82.395,82.352,9.13914956]
[1772952948862,8.82054656,82.395,82.356,9.13914956]
[1772952950362,18.41885761,82.394,82.356,9.13914956]
[1772952950568,8.82054656,82.394,82.356,9.13914956]
[1772952951170,9.59852814,82.393,82.356,9.13914956]
[1772952951366,8.82054656,82.394,82.356,9.13914956]
[1772952951568,9.59852814,82.393,82.356,9.13914956]
[1772952951767,8.82054656,82.392,82.356,9.13914956]
[1772952952069,8.82054656,82.392,82.348,9.13914956]
[1772952952873,8.82054656,82.392,82.351,9.13914956]
[1772952953674,8.82054656,82.392,82.35,3.9294422]
[1772952953675,8.82054656,82.392,82.353,9.13914956]
[1772952954875,8.82054656,82.392,82.356,10.928]
[1772952957775,8.82054656,82.392,82.353,9.13914956]
[1772952957977,8.82054656,82.39,82.353,9.13914956]
[1772952959679,8.82054656,82.39,82.355,9.13914956]
[1772952960379,8.82054656,82.39,82.357,9.13914956]
[1772952962481,9.05355353,82.399,82.36,8.47559586]
[1772952962683,9.05355353,82.397,82.36,8.47559586]
[1772952962882,9.05355353,82.407,82.361,8.47559586]
[1772952963076,9.59992673,82.406,82.361,8.47559586]